[Event "Titled Tuesday Blitz May 9 Late 2023"]
[White "Zhigalko, Sergei"]
[Black "Janaszak, Dawid"]
[WhiteFideId "13502956"]
[BlackFideId "1119206"]
[WhiteElo "2626"]
[BlackElo "2220"]
[Result "1-0"]
[Round "02"]
[TimeControl "180+2"]
[Date "2023.05.09"]
[WhiteClock "0:00:04"]
[BlackClock "0:00:06"]

1. e4 {[%clk 0:03:00]}  c5 {[%clk 0:02:59]} 2. c3 {[%clk 0:03:00]}  e5 {[%clk 0:02:58]} 3. Nf3 {[%clk 0:03:00]}  Nc6 {[%clk 0:02:58]} 4. Bc4 {[%clk 0:03:00]}  Nf6 {[%clk 0:02:58]} 5. Ng5 {[%clk 0:02:58]}  d5 {[%clk 0:02:58]} 6. exd5 {[%clk 0:02:58]}  Na5 {[%clk 0:02:58]} 7. Bb5+ {[%clk 0:02:58]}  Bd7 {[%clk 0:02:56]} 8. Qa4 {[%clk 0:02:58]}  a6 {[%clk 0:02:53]} 9. Bxd7+ {[%clk 0:02:55]}  Nxd7 {[%clk 0:02:54]} 10. Ne6 {[%clk 0:02:36]}  fxe6 {[%clk 0:02:54]} 11. dxe6 {[%clk 0:02:37]}  Nc6 {[%clk 0:02:54]} 12. exd7+ {[%clk 0:02:36]}  Qxd7 {[%clk 0:02:55]} 13. O-O {[%clk 0:02:29]}  Be7 {[%clk 0:02:53]} 14. Rd1 {[%clk 0:02:22]}  O-O {[%clk 0:02:53]} 15. d3 {[%clk 0:02:22]}  Rad8 {[%clk 0:02:35]} 16. Be3 {[%clk 0:02:20]}  Qf5 {[%clk 0:02:23]} 17. Na3 {[%clk 0:02:11]}  Kh8 {[%clk 0:02:21]} 18. Qe4 {[%clk 0:02:07]}  Qh5 {[%clk 0:02:09]} 19. h3 {[%clk 0:02:02]}  Rf6 {[%clk 0:01:58]} 20. Nc4 {[%clk 0:01:56]}  Rg6 {[%clk 0:01:55]} 21. a4 {[%clk 0:01:47]}  Rf8 {[%clk 0:01:51]} 22. a5 {[%clk 0:01:34]}  Rff6 {[%clk 0:01:35]} 23. Kh2 {[%clk 0:01:27]}  h6 {[%clk 0:01:23]} 24. Re1 {[%clk 0:01:26]}  Re6 {[%clk 0:01:07]} 25. f3 {[%clk 0:01:19]}  Bg5 {[%clk 0:01:06]} 26. Re2 {[%clk 0:01:03]}  Bh4 {[%clk 0:00:53]} 27. Bf2 {[%clk 0:00:59]}  Bxf2 {[%clk 0:00:45]} 28. Rxf2 {[%clk 0:00:59]}  Qg5 {[%clk 0:00:45]} 29. Kh1 {[%clk 0:00:50]}  Qe7 {[%clk 0:00:42]} 30. Re2 {[%clk 0:00:44]}  Qf7 {[%clk 0:00:33]} 31. Rae1 {[%clk 0:00:42]}  Rg5 {[%clk 0:00:33]} 32. f4 {[%clk 0:00:37]}  Rf5 {[%clk 0:00:33]} 33. fxe5 {[%clk 0:00:33]}  Rf4 {[%clk 0:00:29]} 34. Qe3 {[%clk 0:00:29]}  g5 {[%clk 0:00:22]} 35. Qxc5 {[%clk 0:00:19]}  g4 {[%clk 0:00:20]} 36. Qe3 {[%clk 0:00:11]}  gxh3 {[%clk 0:00:20]} 37. Qxh3 {[%clk 0:00:12]}  Rf5 {[%clk 0:00:19]} 38. Kg1 {[%clk 0:00:09]}  Rh5 {[%clk 0:00:19]} 39. Qg4 {[%clk 0:00:07]}  Rg5 {[%clk 0:00:19]} 40. Qh4 {[%clk 0:00:06]}  Rh5 {[%clk 0:00:19]} 41. Qe4 {[%clk 0:00:04]}  Rg5 {[%clk 0:00:17]} 42. d4 {[%clk 0:00:04]}  Reg6 {[%clk 0:00:16]} 43. Nd6 {[%clk 0:00:04]}  Qg8 {[%clk 0:00:15]} 44. e6 {[%clk 0:00:04]}  Ne7 {[%clk 0:00:16]} 45. Nf7+ {[%clk 0:00:04]}  Kg7 {[%clk 0:00:13]} 46. Nxg5 {[%clk 0:00:05]}  Rxg5 {[%clk 0:00:13]} 47. Rf1 {[%clk 0:00:04]}  Kh8 {[%clk 0:00:13]} 48. Rf7 {[%clk 0:00:04]}  Rg4 {[%clk 0:00:11]} 49. Qe5+ {[%clk 0:00:04]}  Rg7 {[%clk 0:00:06]} 50. Rxe7 {[%clk 0:00:04]} 1-0


[Site "https://www.chess.com"]

[Event "Titled Tuesday Blitz May 9 Late 2023"]
[White "Ibadov, Dashgyn"]
[Black "Yoo, Christopher Woojin"]
[WhiteFideId "24107514"]
[BlackFideId "30909694"]
[WhiteElo "2208"]
[BlackElo "2519"]
[Result "1/2-1/2"]
[Round "02"]
[TimeControl "180+2"]
[Date "2023.05.09"]
[WhiteClock "0:00:09"]
[BlackClock "0:00:02"]

1. e4 {[%clk 0:03:00]}  c6 {[%clk 0:02:43]} 2. d4 {[%clk 0:02:59]}  d5 {[%clk 0:02:44]} 3. exd5 {[%clk 0:03:00]}  cxd5 {[%clk 0:02:43]} 4. Bd3 {[%clk 0:03:01]}  Nc6 {[%clk 0:02:43]} 5. c3 {[%clk 0:03:01]}  Qc7 {[%clk 0:02:38]} 6. h3 {[%clk 0:03:00]}  g6 {[%clk 0:02:36]} 7. Nf3 {[%clk 0:03:00]}  Bg7 {[%clk 0:02:36]} 8. O-O {[%clk 0:03:00]}  Nf6 {[%clk 0:02:35]} 9. Be3 {[%clk 0:02:59]}  Bf5 {[%clk 0:02:32]} 10. Be2 {[%clk 0:02:59]}  O-O {[%clk 0:02:17]} 11. Nbd2 {[%clk 0:02:59]}  a6 {[%clk 0:01:58]} 12. Re1 {[%clk 0:02:59]}  b5 {[%clk 0:01:53]} 13. Qc1 {[%clk 0:03:00]}  Rfc8 {[%clk 0:01:47]} 14. Nb3 {[%clk 0:03:00]}  Ne4 {[%clk 0:01:34]} 15. Bf4 {[%clk 0:02:59]}  Qb6 {[%clk 0:01:33]} 16. g4 {[%clk 0:02:53]}  Bd7 {[%clk 0:01:29]} 17. Bh6 {[%clk 0:02:52]}  b4 {[%clk 0:01:16]} 18. Bxg7 {[%clk 0:02:51]}  Kxg7 {[%clk 0:01:12]} 19. Bd3 {[%clk 0:02:37]}  bxc3 {[%clk 0:01:08]} 20. bxc3 {[%clk 0:02:38]}  Na5 {[%clk 0:00:36]} 21. Bxe4 {[%clk 0:02:30]}  Nxb3 {[%clk 0:00:34]} 22. axb3 {[%clk 0:02:28]}  dxe4 {[%clk 0:00:34]} 23. Ne5 {[%clk 0:02:21]}  Be6 {[%clk 0:00:32]} 24. Rxe4 {[%clk 0:02:06]}  Qxb3 {[%clk 0:00:32]} 25. Re3 {[%clk 0:02:06]}  Qd5 {[%clk 0:00:25]} 26. Qa3 {[%clk 0:02:02]}  Rab8 {[%clk 0:00:24]} 27. Qxe7 {[%clk 0:01:59]}  Rb3 {[%clk 0:00:23]} 28. Nd3 {[%clk 0:01:39]}  Rbxc3 {[%clk 0:00:14]} 29. Nf4 {[%clk 0:01:37]}  Rc1+ {[%clk 0:00:14]} 30. Re1 {[%clk 0:01:37]}  Rxa1 {[%clk 0:00:13]} 31. Rxa1 {[%clk 0:01:23]}  Qe4 {[%clk 0:00:12]} 32. Nxe6+ {[%clk 0:01:19]}  Qxe6 {[%clk 0:00:11]} 33. Qxe6 {[%clk 0:01:20]}  fxe6 {[%clk 0:00:12]} 34. Rxa6 {[%clk 0:01:20]}  Rd8 {[%clk 0:00:13]} 35. Rxe6 {[%clk 0:01:09]}  Rxd4 {[%clk 0:00:13]} 36. Re7+ {[%clk 0:01:09]}  Kh6 {[%clk 0:00:11]} 37. Kg2 {[%clk 0:01:08]}  g5 {[%clk 0:00:11]} 38. Kg3 {[%clk 0:01:05]}  Kg6 {[%clk 0:00:12]} 39. Re6+ {[%clk 0:00:40]}  Kf7 {[%clk 0:00:11]} 40. Re5 {[%clk 0:00:40]}  Kf6 {[%clk 0:00:11]} 41. Rf5+ {[%clk 0:00:39]}  Kg6 {[%clk 0:00:11]} 42. h4 {[%clk 0:00:40]}  Rd3+ {[%clk 0:00:07]} 43. f3 {[%clk 0:00:40]}  gxh4+ {[%clk 0:00:08]} 44. Kxh4 {[%clk 0:00:40]}  h5 {[%clk 0:00:05]} 45. Rg5+ {[%clk 0:00:30]}  Kf6 {[%clk 0:00:05]} 46. Kxh5 {[%clk 0:00:20]}  Rxf3 {[%clk 0:00:05]} 47. Rg6+ {[%clk 0:00:19]}  Kf7 {[%clk 0:00:05]} 48. Ra6 {[%clk 0:00:17]}  Rb3 {[%clk 0:00:02]} 49. Kg5 {[%clk 0:00:14]}  Kg7 {[%clk 0:00:01]} 50. Ra7+ {[%clk 0:00:14]}  Kg8 {[%clk 0:00:02]} 51. Kh6 {[%clk 0:00:09]}  Rb6+ {[%clk 0:00:02]} 1/2-1/2


[Site "https://www.chess.com"]

[Event "Titled Tuesday Blitz May 9 Late 2023"]
[White "Martinez Reyes, Pedro Ramon"]
[Black "Dardha, Daniel"]
[WhiteFideId "3901807"]
[BlackFideId "240990"]
[WhiteElo "2340"]
[BlackElo "2581"]
[Result "1-0"]
[Round "02"]
[TimeControl "180+2"]
[Date "2023.05.09"]
[WhiteClock "0:00:11"]
[BlackClock "0:00:08"]

1. d4 {[%clk 0:03:00]}  d5 {[%clk 0:02:56]} 2. c4 {[%clk 0:03:00]}  e5 {[%clk 0:02:55]} 3. dxe5 {[%clk 0:02:50]}  d4 {[%clk 0:02:55]} 4. Nf3 {[%clk 0:02:49]}  Nc6 {[%clk 0:02:55]} 5. a3 {[%clk 0:02:46]}  Nge7 {[%clk 0:02:53]} 6. g3 {[%clk 0:02:45]}  Ng6 {[%clk 0:02:51]} 7. Bg5 {[%clk 0:02:45]}  Be7 {[%clk 0:02:48]} 8. Bxe7 {[%clk 0:02:41]}  Qxe7 {[%clk 0:02:48]} 9. Nxd4 {[%clk 0:02:36]}  Ngxe5 {[%clk 0:02:49]} 10. Bg2 {[%clk 0:02:33]}  Bg4 {[%clk 0:02:33]} 11. Nxc6 {[%clk 0:02:24]}  bxc6 {[%clk 0:02:31]} 12. O-O {[%clk 0:02:10]}  Rd8 {[%clk 0:02:29]} 13. Qc2 {[%clk 0:02:06]}  O-O {[%clk 0:02:29]} 14. h3 {[%clk 0:01:55]}  Bh5 {[%clk 0:02:19]} 15. Nc3 {[%clk 0:01:50]}  Nxc4 {[%clk 0:02:18]} 16. Ne4 {[%clk 0:01:40]}  Ne5 {[%clk 0:02:14]} 17. f4 {[%clk 0:01:38]}  f5 {[%clk 0:01:54]} 18. Qc5 {[%clk 0:01:37]}  Ng6 {[%clk 0:01:41]} 19. Qxe7 {[%clk 0:01:29]}  Nxe7 {[%clk 0:01:42]} 20. Nc5 {[%clk 0:01:22]}  Rd2 {[%clk 0:01:42]} 21. b4 {[%clk 0:01:15]}  Rfd8 {[%clk 0:01:36]} 22. e4 {[%clk 0:01:11]}  fxe4 {[%clk 0:01:34]} 23. Bxe4 {[%clk 0:01:09]}  Nd5 {[%clk 0:01:31]} 24. Rf2 {[%clk 0:00:59]}  Nc3 {[%clk 0:01:18]} 25. Rxd2 {[%clk 0:00:49]}  Rxd2 {[%clk 0:01:19]} 26. Bd3 {[%clk 0:00:47]}  Ne2+ {[%clk 0:01:12]} 27. Kf2 {[%clk 0:00:30]}  Nc3+ {[%clk 0:01:12]} 28. Kg1 {[%clk 0:00:26]}  Bf3 {[%clk 0:01:09]} 29. Re1 {[%clk 0:00:24]}  Bd5 {[%clk 0:01:07]} 30. Re7 {[%clk 0:00:20]}  Na4 {[%clk 0:01:03]} 31. Be4 {[%clk 0:00:09]}  Nxc5 {[%clk 0:01:00]} 32. bxc5 {[%clk 0:00:09]}  Kf8 {[%clk 0:00:59]} 33. Re5 {[%clk 0:00:09]}  Rd4 {[%clk 0:00:55]} 34. Bxh7 {[%clk 0:00:08]}  Rc4 {[%clk 0:00:52]} 35. Bg6 {[%clk 0:00:08]}  Bf7 {[%clk 0:00:42]} 36. Rf5 {[%clk 0:00:08]}  Rc3 {[%clk 0:00:43]} 37. Rxf7+ {[%clk 0:00:08]}  Ke8 {[%clk 0:00:44]} 38. Rxc7+ {[%clk 0:00:08]}  Kd8 {[%clk 0:00:44]} 39. Rxc6 {[%clk 0:00:09]}  Rxa3 {[%clk 0:00:44]} 40. Rd6+ {[%clk 0:00:08]}  Kc7 {[%clk 0:00:44]} 41. Kf2 {[%clk 0:00:09]}  a5 {[%clk 0:00:44]} 42. Bd3 {[%clk 0:00:09]}  a4 {[%clk 0:00:44]} 43. Ke3 {[%clk 0:00:09]}  Rc3 {[%clk 0:00:44]} 44. Kd4 {[%clk 0:00:10]}  Ra3 {[%clk 0:00:43]} 45. Rg6 {[%clk 0:00:10]}  Ra1 {[%clk 0:00:43]} 46. Rxg7+ {[%clk 0:00:11]}  Kc6 {[%clk 0:00:44]} 47. Ra7 {[%clk 0:00:12]}  a3 {[%clk 0:00:44]} 48. Ra6+ {[%clk 0:00:11]}  Kb7 {[%clk 0:00:44]} 49. Ra4 {[%clk 0:00:12]}  Kc6 {[%clk 0:00:43]} 50. g4 {[%clk 0:00:12]}  a2 {[%clk 0:00:42]} 51. f5 {[%clk 0:00:12]}  Rh1 {[%clk 0:00:38]} 52. Rxa2 {[%clk 0:00:12]}  Rxh3 {[%clk 0:00:39]} 53. Ra6+ {[%clk 0:00:12]}  Kb7 {[%clk 0:00:39]} 54. Rg6 {[%clk 0:00:12]}  Rg3 {[%clk 0:00:39]} 55. f6 {[%clk 0:00:13]}  Kc7 {[%clk 0:00:39]} 56. f7 {[%clk 0:00:13]}  Rf3 {[%clk 0:00:36]} 57. Bf5 {[%clk 0:00:13]}  Rf4+ {[%clk 0:00:33]} 58. Ke5 {[%clk 0:00:13]}  Rf1 {[%clk 0:00:26]} 59. f8=Q {[%clk 0:00:11]}  Re1+ {[%clk 0:00:26]} 60. Kf4 {[%clk 0:00:12]}  Rf1+ {[%clk 0:00:22]} 61. Kg5 {[%clk 0:00:11]}  Rd1 {[%clk 0:00:08]} 62. Qf7+ {[%clk 0:00:11]} 1-0


[Site "https://www.chess.com"]

[Event "Titled Tuesday Blitz May 9 Late 2023"]
[White "Bachmann, Axel"]
[Black "Paszewski, Mateusz"]
[WhiteFideId "3700488"]
[BlackFideId "1141058"]
[WhiteElo "2605"]
[BlackElo "2223"]
[Result "1-0"]
[Round "02"]
[TimeControl "180+2"]
[Date "2023.05.09"]
[WhiteClock "0:00:24"]
[BlackClock "0:00:00"]

1. Nf3 {[%clk 0:02:57]}  d5 {[%clk 0:02:59]} 2. e3 {[%clk 0:02:56]}  Nf6 {[%clk 0:02:58]} 3. c4 {[%clk 0:02:57]}  c6 {[%clk 0:02:59]} 4. Nc3 {[%clk 0:02:56]}  e6 {[%clk 0:02:59]} 5. b3 {[%clk 0:02:56]}  Bd6 {[%clk 0:02:59]} 6. Bb2 {[%clk 0:02:55]}  O-O {[%clk 0:03:00]} 7. Be2 {[%clk 0:02:55]}  b6 {[%clk 0:02:55]} 8. Rg1 {[%clk 0:02:50]}  Bb7 {[%clk 0:02:44]} 9. g4 {[%clk 0:02:48]}  Na6 {[%clk 0:02:23]} 10. g5 {[%clk 0:02:44]}  Nd7 {[%clk 0:02:23]} 11. h4 {[%clk 0:02:33]}  Qe7 {[%clk 0:02:13]} 12. h5 {[%clk 0:02:24]}  Ba3 {[%clk 0:02:04]} 13. Bxa3 {[%clk 0:02:17]}  Qxa3 {[%clk 0:02:04]} 14. cxd5 {[%clk 0:01:55]}  cxd5 {[%clk 0:01:55]} 15. Nd4 {[%clk 0:01:55]}  Qe7 {[%clk 0:01:40]} 16. a3 {[%clk 0:01:42]}  Nac5 {[%clk 0:01:35]} 17. d3 {[%clk 0:01:33]}  Rac8 {[%clk 0:01:32]} 18. b4 {[%clk 0:01:30]}  Ne4 {[%clk 0:01:24]} 19. Ncb5 {[%clk 0:01:21]}  Nxg5 {[%clk 0:00:46]} 20. Nxa7 {[%clk 0:01:21]}  Ra8 {[%clk 0:00:45]} 21. Nab5 {[%clk 0:01:18]}  Rfc8 {[%clk 0:00:28]} 22. Bg4 {[%clk 0:01:12]}  f5 {[%clk 0:00:28]} 23. f4 {[%clk 0:01:04]}  Nf7 {[%clk 0:00:22]} 24. Bf3 {[%clk 0:00:54]}  Qh4+ {[%clk 0:00:20]} 25. Kf1 {[%clk 0:00:54]}  Qf6 {[%clk 0:00:15]} 26. Ra2 {[%clk 0:00:52]}  e5 {[%clk 0:00:14]} 27. fxe5 {[%clk 0:00:50]}  Nfxe5 {[%clk 0:00:14]} 28. Rag2 {[%clk 0:00:50]}  f4 {[%clk 0:00:13]} 29. Rxg7+ {[%clk 0:00:45]}  Kh8 {[%clk 0:00:14]} 30. e4 {[%clk 0:00:28]}  dxe4 {[%clk 0:00:13]} 31. Bxe4 {[%clk 0:00:29]}  Bxe4 {[%clk 0:00:13]} 32. dxe4 {[%clk 0:00:30]}  f3 {[%clk 0:00:09]} 33. Nf5 {[%clk 0:00:29]}  Qe6 {[%clk 0:00:04]} 34. Nbd6 {[%clk 0:00:25]}  Nc4 {[%clk 0:00:00]} 35. Nf7+ {[%clk 0:00:24]} 1-0


[Site "https://www.chess.com"]

[Event "Titled Tuesday Blitz May 9 Late 2023"]
[White "tufferguy"]
[Black "Grigoriants, Sergey"]
[BlackFideId "4130804"]
[WhiteElo "2561"]
[BlackElo "2502"]
[Result "1-0"]
[Round "02"]
[TimeControl "180+2"]
[Date "2023.05.09"]
[WhiteClock "0:01:08"]
[BlackClock "0:00:04"]

1. d4 {[%clk 0:03:00]}  Nf6 {[%clk 0:02:57]} 2. Nc3 {[%clk 0:02:59]}  d5 {[%clk 0:02:56]} 3. Bf4 {[%clk 0:02:58]}  e6 {[%clk 0:02:56]} 4. Nb5 {[%clk 0:02:57]}  Bb4+ {[%clk 0:02:50]} 5. c3 {[%clk 0:02:55]}  Ba5 {[%clk 0:02:51]} 6. a4 {[%clk 0:02:55]}  a6 {[%clk 0:02:49]} 7. b4 {[%clk 0:02:55]}  Bxb4 {[%clk 0:02:47]} 8. Nxc7+ {[%clk 0:02:39]}  Qxc7 {[%clk 0:02:40]} 9. Bxc7 {[%clk 0:02:28]}  Bxc3+ {[%clk 0:02:39]} 10. Qd2 {[%clk 0:02:28]}  Bxd2+ {[%clk 0:02:37]} 11. Kxd2 {[%clk 0:02:29]}  Nc6 {[%clk 0:02:23]} 12. e3 {[%clk 0:02:27]}  Kd7 {[%clk 0:01:53]} 13. Bb6 {[%clk 0:02:23]}  Ne4+ {[%clk 0:01:43]} 14. Ke1 {[%clk 0:02:22]}  Ke7 {[%clk 0:01:38]} 15. f3 {[%clk 0:02:14]}  Nd6 {[%clk 0:01:31]} 16. Bc5 {[%clk 0:02:14]}  Rd8 {[%clk 0:01:12]} 17. Bd3 {[%clk 0:02:06]}  f5 {[%clk 0:01:10]} 18. g4 {[%clk 0:02:04]}  Kf6 {[%clk 0:01:05]} 19. Ne2 {[%clk 0:01:57]}  g6 {[%clk 0:00:46]} 20. h4 {[%clk 0:01:55]}  e5 {[%clk 0:00:44]} 21. dxe5+ {[%clk 0:01:41]}  Kxe5 {[%clk 0:00:44]} 22. g5 {[%clk 0:01:34]}  Nf7 {[%clk 0:00:34]} 23. Rb1 {[%clk 0:01:25]}  Rb8 {[%clk 0:00:31]} 24. Nd4 {[%clk 0:01:21]}  Nxd4 {[%clk 0:00:22]} 25. exd4+ {[%clk 0:01:13]}  Ke6 {[%clk 0:00:20]} 26. Rb6+ {[%clk 0:01:12]}  Kd7 {[%clk 0:00:16]} 27. Rf6 {[%clk 0:01:07]}  Ke8 {[%clk 0:00:04]} 28. Kf2 {[%clk 0:01:08]} 1-0


[Site "https://www.chess.com"]

[Event "Titled Tuesday Blitz May 9 Late 2023"]
[White "Erzhanov, Arman"]
[Black "Xiong, Jeffery"]
[WhiteFideId "4138821"]
[BlackFideId "2047640"]
[WhiteElo "2138"]
[BlackElo "2726"]
[Result "0-1"]
[Round "02"]
[TimeControl "180+2"]
[Date "2023.05.09"]
[WhiteClock "0:00:22"]
[BlackClock "0:01:51"]

1. e4 {[%clk 0:02:59]}  e6 {[%clk 0:03:00]} 2. b3 {[%clk 0:02:58]}  c5 {[%clk 0:02:59]} 3. Nf3 {[%clk 0:02:58]}  Nf6 {[%clk 0:02:58]} 4. e5 {[%clk 0:02:57]}  Nd5 {[%clk 0:02:58]} 5. Bb2 {[%clk 0:02:58]}  Nc6 {[%clk 0:02:57]} 6. g3 {[%clk 0:02:59]}  Be7 {[%clk 0:02:41]} 7. Bg2 {[%clk 0:02:58]}  O-O {[%clk 0:02:41]} 8. O-O {[%clk 0:02:58]}  d6 {[%clk 0:02:41]} 9. c4 {[%clk 0:02:51]}  Ndb4 {[%clk 0:02:33]} 10. exd6 {[%clk 0:02:45]}  Qxd6 {[%clk 0:02:33]} 11. d4 {[%clk 0:02:43]}  cxd4 {[%clk 0:02:34]} 12. Nxd4 {[%clk 0:02:43]}  Nxd4 {[%clk 0:02:35]} 13. Bxd4 {[%clk 0:02:43]}  Nc2 {[%clk 0:02:35]} 14. Qxc2 {[%clk 0:02:34]}  Qxd4 {[%clk 0:02:35]} 15. Nc3 {[%clk 0:02:24]}  a6 {[%clk 0:02:35]} 16. Rad1 {[%clk 0:02:24]}  Qc5 {[%clk 0:02:35]} 17. Ne4 {[%clk 0:02:22]}  Qc7 {[%clk 0:02:35]} 18. c5 {[%clk 0:02:12]}  Bd7 {[%clk 0:02:35]} 19. Nd6 {[%clk 0:02:01]}  Rab8 {[%clk 0:02:33]} 20. b4 {[%clk 0:02:00]}  b6 {[%clk 0:02:27]} 21. Rd2 {[%clk 0:01:34]}  Bc6 {[%clk 0:02:12]} 22. Bxc6 {[%clk 0:00:49]}  Qxc6 {[%clk 0:02:12]} 23. Rc1 {[%clk 0:00:46]}  Rfd8 {[%clk 0:02:06]} 24. Rcd1 {[%clk 0:00:36]}  bxc5 {[%clk 0:02:04]} 25. bxc5 {[%clk 0:00:36]}  h6 {[%clk 0:01:53]} 26. Qc4 {[%clk 0:00:33]}  Bxd6 {[%clk 0:01:51]} 27. Rxd6 {[%clk 0:00:32]}  Rxd6 {[%clk 0:01:51]} 28. Rxd6 {[%clk 0:00:22]}  Rb1+ {[%clk 0:01:51]} 0-1


[Site "https://www.chess.com"]

[Event "Titled Tuesday Blitz May 9 Late 2023"]
[White "Salinas Herrera, Pablo"]
[Black "Suder, Jakub"]
[WhiteFideId "3407128"]
[BlackFideId "1195310"]
[WhiteElo "2546"]
[BlackElo "2287"]
[Result "1-0"]
[Round "02"]
[TimeControl "180+2"]
[Date "2023.05.09"]
[WhiteClock "0:02:03"]
[BlackClock "0:01:34"]

1. e4 {[%clk 0:02:59]}  c5 {[%clk 0:02:59]} 2. Nf3 {[%clk 0:02:59]}  e6 {[%clk 0:02:58]} 3. g3 {[%clk 0:02:59]}  Nc6 {[%clk 0:02:57]} 4. Bg2 {[%clk 0:02:59]}  Nf6 {[%clk 0:02:57]} 5. Nc3 {[%clk 0:03:00]}  d5 {[%clk 0:02:50]} 6. exd5 {[%clk 0:03:00]}  exd5 {[%clk 0:02:51]} 7. d4 {[%clk 0:03:00]}  Bg4 {[%clk 0:02:51]} 8. dxc5 {[%clk 0:02:46]}  d4 {[%clk 0:02:44]} 9. Ne2 {[%clk 0:02:43]}  Bxc5 {[%clk 0:02:43]} 10. O-O {[%clk 0:02:44]}  O-O {[%clk 0:02:42]} 11. a3 {[%clk 0:02:44]}  a5 {[%clk 0:02:31]} 12. h3 {[%clk 0:02:43]}  Bh5 {[%clk 0:02:29]} 13. Nf4 {[%clk 0:02:43]}  Bg6 {[%clk 0:02:27]} 14. Nxg6 {[%clk 0:02:44]}  hxg6 {[%clk 0:02:28]} 15. Qd3 {[%clk 0:02:43]}  Re8 {[%clk 0:02:25]} 16. Bg5 {[%clk 0:02:40]}  Qd7 {[%clk 0:02:19]} 17. Rad1 {[%clk 0:02:39]}  Rad8 {[%clk 0:02:17]} 18. Qb5 {[%clk 0:02:36]}  b6 {[%clk 0:02:10]} 19. Nd2 {[%clk 0:02:29]}  Ne5 {[%clk 0:02:07]} 20. Qxd7 {[%clk 0:02:28]}  Rxd7 {[%clk 0:02:07]} 21. Nb3 {[%clk 0:02:21]}  a4 {[%clk 0:02:03]} 22. Nxc5 {[%clk 0:02:21]}  bxc5 {[%clk 0:02:04]} 23. f4 {[%clk 0:02:04]}  Nc4 {[%clk 0:01:55]} 24. Bc6 {[%clk 0:02:04]}  Ne3 {[%clk 0:01:34]} 25. Bxf6 {[%clk 0:02:03]} 1-0


[Site "https://www.chess.com"]

[Event "Titled Tuesday Blitz May 9 Late 2023"]
[White "Mekhitarian, Krikor Sevag"]
[Black "Richter, Paul"]
[WhiteFideId "2107660"]
[BlackFideId "2046350"]
[WhiteElo "2604"]
[BlackElo "2550"]
[Result "1/2-1/2"]
[Round "02"]
[TimeControl "180+2"]
[Date "2023.05.09"]
[WhiteClock "0:00:11"]
[BlackClock "0:00:16"]

1. Nf3 {[%clk 0:03:00]}  Nf6 {[%clk 0:02:58]} 2. c4 {[%clk 0:03:00]}  g6 {[%clk 0:02:58]} 3. Nc3 {[%clk 0:02:55]}  Bg7 {[%clk 0:02:57]} 4. e4 {[%clk 0:02:55]}  d6 {[%clk 0:02:58]} 5. d4 {[%clk 0:02:56]}  O-O {[%clk 0:02:58]} 6. h3 {[%clk 0:02:57]}  Nbd7 {[%clk 0:02:57]} 7. Be3 {[%clk 0:02:56]}  e5 {[%clk 0:02:56]} 8. d5 {[%clk 0:02:57]}  h5 {[%clk 0:02:57]} 9. Be2 {[%clk 0:02:50]}  Nc5 {[%clk 0:02:56]} 10. Nd2 {[%clk 0:02:50]}  a5 {[%clk 0:02:56]} 11. g4 {[%clk 0:02:49]}  hxg4 {[%clk 0:02:48]} 12. hxg4 {[%clk 0:02:48]}  Nh7 {[%clk 0:02:47]} 13. O-O {[%clk 0:02:13]}  Bf6 {[%clk 0:02:44]} 14. Bf3 {[%clk 0:01:39]}  Bg5 {[%clk 0:02:37]} 15. Qe2 {[%clk 0:01:38]}  Bxe3 {[%clk 0:02:36]} 16. Qxe3 {[%clk 0:01:38]}  Qh4 {[%clk 0:02:26]} 17. Kg2 {[%clk 0:01:32]}  Bxg4 {[%clk 0:01:49]} 18. Rh1 {[%clk 0:01:31]}  Bxf3+ {[%clk 0:01:49]} 19. Nxf3 {[%clk 0:01:22]}  Qg4+ {[%clk 0:01:34]} 20. Kf1 {[%clk 0:01:22]}  Qf4 {[%clk 0:01:22]} 21. Ke2 {[%clk 0:01:19]}  Qxe3+ {[%clk 0:01:20]} 22. Kxe3 {[%clk 0:01:20]}  Kg7 {[%clk 0:01:16]} 23. Rag1 {[%clk 0:01:17]}  Rh8 {[%clk 0:01:05]} 24. Nb5 {[%clk 0:01:12]}  Na6 {[%clk 0:00:55]} 25. Nh4 {[%clk 0:01:11]}  Kf6 {[%clk 0:00:53]} 26. Nf3 {[%clk 0:00:58]}  Rag8 {[%clk 0:00:51]} 27. a3 {[%clk 0:00:55]}  Nf8 {[%clk 0:00:49]} 28. b4 {[%clk 0:00:51]}  axb4 {[%clk 0:00:48]} 29. axb4 {[%clk 0:00:52]}  Nd7 {[%clk 0:00:27]} 30. Nd2 {[%clk 0:00:42]}  Ke7 {[%clk 0:00:20]} 31. Rb1 {[%clk 0:00:30]}  Kd8 {[%clk 0:00:19]} 32. c5 {[%clk 0:00:18]}  dxc5 {[%clk 0:00:18]} 33. bxc5 {[%clk 0:00:18]}  Rxh1 {[%clk 0:00:17]} 34. Rxh1 {[%clk 0:00:17]}  Naxc5 {[%clk 0:00:18]} 35. Nc4 {[%clk 0:00:17]}  b6 {[%clk 0:00:17]} 36. d6 {[%clk 0:00:17]}  cxd6 {[%clk 0:00:18]} 37. Nbxd6 {[%clk 0:00:17]}  Ke7 {[%clk 0:00:18]} 38. Rh7 {[%clk 0:00:17]}  Rf8 {[%clk 0:00:17]} 39. Nb5 {[%clk 0:00:16]}  Ke6 {[%clk 0:00:17]} 40. Nc7+ {[%clk 0:00:16]}  Ke7 {[%clk 0:00:17]} 41. Nd5+ {[%clk 0:00:17]}  Ke6 {[%clk 0:00:17]} 42. Nc7+ {[%clk 0:00:18]}  Ke7 {[%clk 0:00:17]} 43. Nd5+ {[%clk 0:00:19]}  Ke6 {[%clk 0:00:16]} 44. Nc7+ {[%clk 0:00:11]} 1/2-1/2


[Site "https://www.chess.com"]